lending/lending_fUSD_20250121
["ID","MTS","AMOUNT","RATE_DAILY","PERIOD"]
[349892193,1737481847407,-630.78,0.00019726,2]
[349892194,1737481847417,-500.0,0.00019726,2]
[349892195,1737481847426,-500.0,0.00019726,2]
[349892196,1737481847436,-1879.4,0.00019726,2]
[349892197,1737481847446,-500.0,0.00019726,2]
[349892198,1737481847455,-1189.73,0.00019726,2]
[349892199,1737481847465,-1344.96,0.00019726,2]
[349892200,1737481847475,-1273.53,0.00019726,2]
[349892201,1737481847485,-915.46,0.00019726,2]
[349892202,1737481847495,-611.0,0.00019726,2]
[349892203,1737481847504,-531.64215475,0.00019726,2]
[349892204,1737481847515,-500.0,0.00019726,2]
[349892205,1737481847525,-1205.37,0.00019726,2]
[349892206,1737481847534,-815.77,0.00019726,2]
[349892207,1737481847544,-500.0,0.00019726,2]
[349892208,1737481847554,-500.0,0.00019726,2]
[349892209,1737481847564,-1058.59,0.00019726,2]
[349892210,1737481847574,-903.51,0.00019726,2]
[349892211,1737481847584,-500.0,0.00019726,2]
[349892212,1737481847596,-500.0,0.00019726,2]
[349892213,1737481847606,-1120.5,0.00019726,2]
[349892214,1737481847615,-1815.36,0.00019726,2]
[349892215,1737481847625,-500.0,0.00019726,2]
[349892216,1737481847635,-2428.83,0.00019726,2]
[349892217,1737481847645,-500.0,0.00019726,2]
[349892218,1737481847655,-2074.92,0.00019726,2]
[349892219,1737481847665,-4234.98,0.00019726,2]
[349892220,1737481847674,-500.0,0.00019726,2]
[349892221,1737481847689,-500.0,0.00019726,2]
[349892222,1737481847699,-758.4,0.00019726,2]
[349892223,1737481847709,-885.5,0.00019726,2]
[349892224,1737481847719,-969.51,0.00019726,2]
[349892225,1737481847730,-500.0,0.00019726,2]
[349892226,1737481847740,-500.0,0.00019726,2]
[349892227,1737481847750,-500.0,0.00019726,2]
[349892228,1737481847760,-678.61,0.00019726,2]
[349892229,1737481847770,-1307.89,0.00019726,2]
[349892230,1737481847780,-500.0,0.00019726,2]
[349892231,1737481847790,-500.0,0.00019726,2]
[349892232,1737481847800,-655.48,0.00019726,2]
[349892233,1737481847810,-3654.26,0.00019726,2]
[349892234,1737481847820,-1432.91,0.00019726,2]
[349892235,1737481847831,-500.0,0.00019726,2]
[349892236,1737481847841,-500.0,0.00019726,2]
[349892237,1737481847855,-711.72,0.00019726,2]
[349892238,1737481847865,-1306.74,0.00019726,2]
[349892239,1737481847875,-500.0,0.00019726,2]
[349892240,1737481847885,-1711.39,0.00019726,2]
[349892241,1737481847895,-503.78,0.00019726,2]
[349892242,1737481847906,-715.38,0.00019726,2]
[349892243,1737481847916,-1372.82,0.00019726,2]
[349892244,1737481847926,-856.63,0.00019726,2]
[349892245,1737481847936,-578.87,0.00019726,2]
[349892246,1737481847945,-500.0,0.00019726,2]
[349892247,1737481847955,-500.0,0.00019726,2]
[349892248,1737481847965,-500.0,0.00019726,2]
[349892249,1737481847975,-500.0,0.00019726,2]
[349892250,1737481847985,-500.0,0.00019726,2]
[349892251,1737481847995,-500.0,0.00019726,2]
[349892252,1737481848005,-500.0,0.00019726,2]
[349892253,1737481848015,-1804.88,0.00019726,2]
[349892254,1737481848024,-1825.15,0.00019726,2]
[349892255,1737481848034,-1270.88,0.00019726,2]
[349892256,1737481848044,-644.97,0.00019726,2]
[349892257,1737481848054,-500.0,0.00019726,2]
[349892258,1737481848065,-701.52,0.00019726,2]
[349892259,1737481848074,-500.0,0.00019726,2]
[349892260,1737481848084,-211.87607278,0.00019728,2]
[349892261,1737481848097,-2287.35429341,0.00019785,2]
[349892262,1737481848107,-298.01,0.00019788,2]
[349892263,1737481848117,-321.61,0.00019788,2]
[349892264,1737481848127,-298.01,0.00019788,2]
[349892265,1737481848137,-298.01,0.00019788,2]
[349892266,1737481848147,-298.01,0.00019788,2]
[349892267,1737481848156,-298.01,0.00019788,2]
[349892268,1737481848166,-298.01,0.00019788,2]
[349892269,1737481848175,-298.01,0.00019788,2]
[349892270,1737481848186,-298.01,0.00019788,2]
[349892271,1737481848196,-298.01,0.00019788,2]
[349892272,1737481848206,-298.01,0.00019788,2]
[349892273,1737481848215,-298.01,0.00019788,2]
[349892274,1737481848225,-298.01,0.00019788,2]
[349892275,1737481848235,-298.01,0.00019788,2]
[349892276,1737481848245,-30611.036712,0.000198,2]
[349892277,1737481848255,-211.87607278,0.00019831,2]
[349892278,1737481848265,-168.94,0.00019865,2]
[349892279,1737481848275,-18063.72686618,0.000199,7]
[349892280,1737481848284,-211.87607278,0.00019934,2]
[349892281,1737481848295,-250.0,0.00019951,2]
[349892282,1737481848456,-3409.09926398,0.00019958,2]
[349892283,1737481848466,-500.0,0.00019973,2]
[349892284,1737481848476,-4012.9,0.00019999,2]
[349892285,1737481848486,-1002.64,0.00019999,2]
[349892286,1737481848495,-4072.09,0.00019999,2]
[349892287,1737481848505,-500.0,0.00019999,2]
[349892288,1737481848515,-648.07,0.00019999,2]
[349892289,1737481848525,-547.32,0.00019999,2]
[349892290,1737481848535,-500.0,0.00019999,2]
[349892291,1737481848544,-804.02,0.00019999,2]
[349892292,1737481848554,-534.09,0.00019999,2]
[349892293,1737481848564,-620.7,0.00019999,2]
[349892294,1737481848574,-1154.97,0.00019999,2]
[349892295,1737481848584,-500.0,0.00019999,2]
[349892296,1737481848597,-669.6,0.00019999,2]
[349892297,1737481848608,-854.14,0.00019999,2]
[349892298,1737481848618,-502.54,0.00019999,2]
[349892299,1737481848628,-1320.45,0.00019999,2]
[349892300,1737481848637,-951.01,0.00019999,2]
[349892301,1737481848647,-955.19,0.00019999,2]
[349892302,1737481848656,-1101.88,0.00019999,2]
[349892303,1737481848666,-1101.88,0.00019999,2]
[349892304,1737481848676,-976.3,0.00019999,2]
[349892305,1737481848687,-1050.06,0.00019999,2]
[349892306,1737481848698,-964.72,0.00019999,2]
[349892307,1737481848708,-10494.0,0.0002,2]
[349892308,1737481848719,-60680.65499141,0.0002,14]
[349892309,1737481848731,-2489.54327384,0.0002,4]
[349892310,1737481848741,-100383.77313682,0.0002,2]
[349892311,1737481848750,-61384.81882591,0.0002,4]
[349892312,1737481848760,-5198.5898482,0.0002,3]
[349892313,1737481848771,-500.0,0.0002,2]
[349892314,1737481848781,-500.94,0.0002,2]
[349892315,1737481848791,-500.0,0.0002,2]
[349892316,1737481848801,-500.0,0.0002,2]
[349892317,1737481848811,-500.0,0.0002,2]
[349892318,1737481848823,-12500.0,0.0002,2]
[349892319,1737481848833,-10000.0,0.0002,2]
[349892320,1737481848845,-500.0,0.0002,2]
[349892321,1737481848856,-500.0,0.0002,2]
[349892322,1737481848867,-500.0,0.0002,2]
[349892323,1737481848877,-500.0,0.0002,2]
[349892324,1737481848887,-500.0,0.0002,2]
[349892325,1737481848898,-500.0,0.0002,2]
[349892326,1737481848909,-547.33809712,0.0002,2]
[349892327,1737481848921,-500.0,0.0002,2]
[349892328,1737481848931,-500.0,0.0002,2]
[349892329,1737481848941,-500.0,0.0002,2]
[349892330,1737481848951,-500.0,0.0002,2]
[349892331,1737481848960,-500.0,0.0002,2]
[349892332,1737481848970,-500.0,0.0002,2]
[349892333,1737481848980,-500.0,0.0002,2]
[349892334,1737481848990,-510.01,0.0002,2]
[349892335,1737481848999,-500.0,0.0002,2]
[349892336,1737481849010,-534.82,0.0002,2]
[349892337,1737481849020,-500.0,0.0002,2]
[349892338,1737481849030,-500.0,0.0002,2]
[349892339,1737481849040,-500.0,0.0002,2]
[349892340,1737481849050,-500.0,0.0002,2]
[349892341,1737481849060,-500.0,0.0002,2]
[349892342,1737481849069,-500.0,0.0002,2]
[349892343,1737481849079,-500.0,0.0002,2]
[349892344,1737481849089,-541.823232,0.0002,2]
[349892345,1737481849100,-500.0,0.0002,2]
[349892346,1737481849110,-500.0,0.0002,2]
[349892347,1737481849119,-435.496355,0.0002,2]
[349892348,1737481849130,-612.46,0.0002,2]
[349892349,1737481849141,-500.0,0.0002,2]
[349892350,1737481849150,-500.0,0.0002,2]
[349892351,1737481849160,-538.36,0.0002,2]
[349892352,1737481849170,-500.0,0.0002,2]
[349892353,1737481849179,-500.0,0.0002,2]
[349892354,1737481849189,-500.0,0.0002,2]
[349892355,1737481849199,-500.0,0.0002,2]
[349892356,1737481849208,-500.0,0.0002,2]
[349892357,1737481849218,-500.0,0.0002,2]
[349892358,1737481849227,-500.0,0.0002,2]
[349892359,1737481849237,-500.0,0.0002,2]
[349892360,1737481849247,-500.0,0.0002,2]
[349892361,1737481849257,-500.0,0.0002,2]
[349892362,1737481849269,-500.0,0.0002,2]
[349892363,1737481849279,-500.0,0.0002,2]
[349892364,1737481849290,-500.0,0.0002,2]
[349892365,1737481849300,-500.0,0.0002,2]
[349892366,1737481849310,-622.46381721,0.0002,2]
[349892367,1737481849319,-500.0,0.0002,2]
[349892368,1737481849329,-500.0,0.0002,2]
[349892369,1737481849338,-500.0,0.0002,2]
[349892370,1737481849349,-500.0,0.0002,2]
[349892371,1737481849359,-500.0,0.0002,2]
[349892372,1737481849369,-500.0,0.0002,2]
[349892373,1737481849379,-500.0,0.0002,2]
[349892374,1737481849388,-523.71,0.0002,2]
[349892375,1737481849397,-500.0,0.0002,2]
[349892376,1737481849407,-551.21,0.0002,2]
[349892377,1737481849417,-500.0,0.0002,2]
[349892378,1737481849428,-500.0,0.0002,2]
[349892379,1737481849438,-968.82,0.0002,2]
[349892380,1737481849447,-883.82,0.0002,2]
[349892381,1737481849457,-346.4,0.0002,2]
[349892382,1737481849467,-574.82,0.0002,2]
[349892383,1737481849477,-872.29,0.0002,2]
[349892384,1737481849488,-591.16,0.0002,2]
[349892385,1737481849499,-1949.9,0.0002,2]
[349892386,1737481849509,-448.04409561,0.0002,2]
[349892387,1737481849518,-500.0,0.0002,2]
[349892388,1737481849528,-2083.72,0.0002,2]
[349892389,1737481849537,-1234.26,0.0002,2]
[349892390,1737481849547,-850.27,0.0002,2]
[349892391,1737481849557,-638.37,0.0002,2]
[349892392,1737481849566,-966.51,0.0002,2]
[349892393,1737481849576,-500.0,0.0002,2]
[349892394,1737481849586,-1807.38,0.0002,2]
[349892395,1737481849597,-1229.07,0.0002,2]
[349892396,1737481849607,-983.11,0.0002,2]
[349892397,1737481849616,-1007.18,0.0002,2]
[349892398,1737481849626,-646.36,0.0002,2]
[349892399,1737481849635,-500.0,0.0002,2]
[349892400,1737481849646,-552.58,0.0002,2]
[349892401,1737481849656,-500.0,0.0002,2]
[349892402,1737481849665,-500.0,0.0002,2]
[349892403,1737481849675,-1758.1,0.0002,2]
[349892404,1737481849685,-758.32,0.0002,2]
[349892405,1737481849697,-500.0,0.0002,2]
[349892406,1737481849707,-2087.54,0.0002,2]
[349892407,1737481849716,-500.0,0.0002,2]
[349892408,1737481849727,-552.04,0.0002,2]
[349892409,1737481849736,-500.0,0.0002,2]
[349892410,1737481849746,-814.49,0.0002,2]
[349892411,1737481849756,-692.57,0.0002,2]
[349892412,1737481849766,-500.0,0.0002,2]
[349892413,1737481849775,-2087.16,0.0002,2]
[349892414,1737481849785,-863.83,0.0002,2]
[349892415,1737481849794,-777.16,0.0002,2]
[349892416,1737481849803,-500.0,0.0002,2]
[349892417,1737481849813,-892.77,0.0002,2]
[349892418,1737481849823,-620.39,0.0002,2]
[349892419,1737481849833,-1030.47,0.0002,2]
[349892420,1737481849843,-573.28,0.0002,2]
[349892421,1737481849854,-1860.97,0.0002,2]
[349892422,1737481849864,-1428.91,0.0002,2]
[349892423,1737481849873,-1602.47,0.0002,2]
[349892424,1737481849884,-681.59,0.0002,2]
[349892425,1737481849894,-992.99,0.0002,2]
[349892426,1737481849903,-500.0,0.0002,2]
[349892427,1737481849913,-371.69743833,0.0002,2]
[349892428,1737481849922,-554.72,0.0002,2]
[349892429,1737481849932,-860.54,0.0002,2]
[349892430,1737481849941,-500.0,0.0002,2]
[349892431,1737481849951,-939.91,0.0002,2]
[349892432,1737481849960,-2768.13,0.0002,2]
[349892433,1737481849970,-1656.07,0.0002,2]
[349892434,1737481849980,-500.0,0.0002,2]
[349892435,1737481849990,-630.78,0.0002,2]
[349892436,1737481849999,-500.0,0.0002,2]
[349892437,1737481850009,-500.0,0.0002,2]
[349892438,1737481850019,-1879.4,0.0002,2]
[349892439,1737481850028,-500.0,0.0002,2]
[349892440,1737481850038,-1189.73,0.0002,2]
[349892441,1737481850047,-1344.96,0.0002,2]
[349892442,1737481850057,-1273.53,0.0002,2]
[349892443,1737481850066,-915.46,0.0002,2]
[349892444,1737481850076,-611.0,0.0002,2]
[349892445,1737481850085,-500.0,0.0002,2]
[349892446,1737481850096,-1205.37,0.0002,2]
[349892447,1737481850107,-815.77,0.0002,2]
[349892448,1737481850117,-500.0,0.0002,2]
[349892449,1737481850129,-500.0,0.0002,2]
[349892450,1737481850139,-1058.59,0.0002,2]
[349892451,1737481850149,-903.51,0.0002,2]
[349892452,1737481850159,-500.0,0.0002,2]
[349892453,1737481850169,-500.0,0.0002,2]
[349892454,1737481850182,-1120.5,0.0002,2]
[349892455,1737481850192,-1815.36,0.0002,2]
[349892456,1737481850201,-500.0,0.0002,2]
[349892457,1737481850211,-2428.83,0.0002,2]
[349892458,1737481850220,-449.83925505,0.0002,2]
[349892459,1737481850235,-999.0,0.0002,2]
[349892460,1737481850245,-2074.92,0.0002,2]
[349892461,1737481850254,-4234.98,0.0002,2]
[349892462,1737481850264,-500.0,0.0002,2]
[349892463,1737481850274,-500.0,0.0002,2]
[349892464,1737481850284,-758.4,0.0002,2]
[349892465,1737481850295,-885.5,0.0002,2]
[349892466,1737481850304,-969.51,0.0002,2]
[349892467,1737481850313,-500.0,0.0002,2]
[349892468,1737481850323,-500.0,0.0002,2]
[349892469,1737481850332,-678.61,0.0002,2]
[349892470,1737481850341,-1307.89,0.0002,2]
[349892471,1737481850355,-500.0,0.0002,2]
[349892472,1737481850364,-500.0,0.0002,2]
[349892473,1737481850373,-655.48,0.0002,2]
[349892474,1737481850382,-3654.26,0.0002,2]
[349892475,1737481850392,-1432.91,0.0002,2]
[349892476,1737481850401,-500.0,0.0002,2]
[349892477,1737481850411,-500.0,0.0002,2]
[349892478,1737481850420,-711.72,0.0002,2]
[349892479,1737481850429,-1306.74,0.0002,2]
[349892480,1737481850438,-500.0,0.0002,2]
[349892481,1737481850448,-503.78,0.0002,2]
[349892482,1737481850457,-1711.39,0.0002,2]
[349892483,1737481850466,-715.38,0.0002,2]
[349892484,1737481850476,-1372.82,0.0002,2]
[349892485,1737481850485,-856.63,0.0002,2]
[349892486,1737481850494,-578.87,0.0002,2]
[349892487,1737481850503,-500.0,0.0002,2]
[349892488,1737481850512,-156.89900739,0.0002,2]
[349892489,1737481850522,-500.0,0.0002,2]
[349892490,1737481850531,-500.0,0.0002,2]
[349892491,1737481850540,-500.0,0.0002,2]
[349892492,1737481850550,-500.0,0.0002,2]
[349892493,1737481850560,-500.0,0.0002,2]
[349892494,1737481850569,-1804.88,0.0002,2]
[349892495,1737481850578,-1825.15,0.0002,2]
[349892496,1737481850588,-1270.88,0.0002,2]
[349892497,1737481850600,-644.97,0.0002,2]
[349892498,1737481850610,-500.0,0.0002,2]
[349892499,1737481850619,-701.52,0.0002,2]
[349892500,1737481850628,-500.0,0.0002,2]
[349892501,1737481850637,-802.04049213,0.00020005,2]
[349892502,1737481850647,-2287.35429341,0.00020021,2]
[349892503,1737481850656,-160.621,0.0002003,2]
[349892504,1737481850665,-1000.0,0.00020034,2]
[349892505,1737481850675,-211.87607278,0.00020038,2]
[349892506,1737481850685,-196.656917,0.0002004,2]
[349892507,1737481850698,-151.0,0.0002004,2]
[349892508,1737481850708,-151.0,0.0002004,2]
[349892509,1737481850717,-225.11263,0.0002004,2]
[349892510,1737481850728,-151.0,0.0002004,2]
[349892511,1737481850737,-225.11263,0.0002004,2]
[349892512,1737481850747,-151.0,0.0002004,2]
[349892513,1737481850756,-151.0,0.0002004,2]
[349892514,1737481850766,-12500.0,0.0002004,2]
[349892515,1737481850777,-2500.0,0.0002006,2]
[349892516,1737481850787,-12500.0,0.0002008,2]
[349892517,1737481850796,-152.928724,0.0002008,2]
[349892518,1737481850805,-202.887859,0.0002008,2]
[349892519,1737481850815,-151.0,0.0002008,2]
[349892520,1737481850825,-151.0,0.0002008,2]
[349892521,1737481850835,-151.0,0.0002008,2]
[349892522,1737481850847,-151.0,0.0002008,2]
[349892523,1737481850858,-1000.0,0.00020102,2]
[349892524,1737481850869,-2573.24,0.00020103,2]
[349892525,1737481850879,-10000.0,0.00020107,2]
[349892526,1737481850891,-12500.0,0.0002012,2]
[349892527,1737481850902,-2986.65,0.00020129,2]
[349892528,1737481850913,-211.87607278,0.00020141,2]
[349892529,1737481850924,-9999.99,0.00020145,2]
[349892530,1737481850933,-150.99,0.00020145,2]
[349892531,1737481850944,-150.99,0.00020145,2]
[349892532,1737481850954,-9999.99,0.00020145,2]
[349892533,1737481850965,-999.99,0.00020145,2]
[349892534,1737481850975,-9999.99,0.00020145,2]
[349892535,1737481850985,-12500.0,0.0002016,2]
[349892536,1737481850995,-233.21,0.00020179,2]
[349892537,1737481851005,-12500.0,0.000202,2]
[349892538,1737481851014,-11708.39916403,0.000202,2]
[349892539,1737481851024,-3409.09926398,0.00020206,2]
[349892540,1737481851034,-10000.0,0.00020213,2]
[349892541,1737481851043,-207.0,0.0002023,2]
[349892542,1737481851054,-12500.0,0.0002024,2]
[349892543,1737481851063,-211.87607278,0.00020245,2]
[349892544,1737481851074,-2287.35429341,0.00020257,2]
[349892545,1737481851084,-5000.0,0.00020266,2]
[349892546,1737481851093,-1101.88,0.00020272,2]
[349892547,1737481851105,-583.75,0.00020273,2]
[349892548,1737481851115,-500.94,0.00020273,2]
[349892549,1737481851124,-500.0,0.00020273,2]
[349892550,1737481851133,-500.0,0.00020273,2]
[349892551,1737481851143,-500.0,0.00020273,2]
[349892552,1737481851152,-500.0,0.00020273,2]
[349892553,1737481851162,-254.71022663,0.00020273,2]
[349892554,1737481851171,-500.0,0.00020273,2]
[349892555,1737481851182,-500.0,0.00020273,2]
[349892556,1737481851198,-151.0,0.00020273,2]
[349892557,1737481851208,-151.0,0.00020273,2]
[349892558,1737481851217,-151.0,0.00020273,2]
[349892559,1737481851227,-500.0,0.00020273,2]
[349892560,1737481851236,-151.0,0.00020273,2]
[349892561,1737481851246,-500.0,0.00020273,2]
[349892562,1737481851255,-151.0,0.00020273,2]
[349892563,1737481851264,-310.142692,0.00020273,2]
[349892564,1737481851273,-310.142692,0.00020273,2]
[349892565,1737481851282,-500.0,0.00020273,2]
[349892566,1737481851292,-153.027457,0.00020273,2]
[349892567,1737481851301,-151.0,0.00020273,2]
[349892568,1737481851311,-151.0,0.00020273,2]
[349892569,1737481851322,-500.0,0.00020273,2]
[349892570,1737481851331,-500.0,0.00020273,2]
[349892571,1737481851340,-500.0,0.00020273,2]
[349892572,1737481851351,-500.0,0.00020273,2]
[349892573,1737481851360,-500.0,0.00020273,2]
[349892574,1737481851370,-500.0,0.00020273,2]
[349892575,1737481851379,-510.01,0.00020273,2]
[349892576,1737481851389,-500.0,0.00020273,2]
[349892577,1737481851398,-534.82,0.00020273,2]
[349892578,1737481851411,-331.56,0.00020273,2]
[349892579,1737481851421,-500.0,0.00020273,2]
[349892580,1737481851430,-500.0,0.00020273,2]
[349892581,1737481851440,-500.0,0.00020273,2]
[349892582,1737481851451,-500.0,0.00020273,2]
[349892583,1737481851461,-500.0,0.00020273,2]
[349892584,1737481851470,-500.0,0.00020273,2]
[349892585,1737481851480,-541.823232,0.00020273,2]
[349892586,1737481851490,-151.0,0.00020273,2]
[349892587,1737481851500,-500.0,0.00020273,2]
[349892588,1737481851510,-500.0,0.00020273,2]
[349892589,1737481851520,-435.496355,0.00020273,2]
[349892590,1737481851529,-500.0,0.00020273,2]
[349892591,1737481851539,-151.0,0.00020273,2]
[349892592,1737481851549,-500.0,0.00020273,2]
[349892593,1737481851559,-151.0,0.00020273,2]
[349892594,1737481851569,-538.36,0.00020273,2]
[349892595,1737481851578,-500.0,0.00020273,2]
[349892596,1737481851587,-500.0,0.00020273,2]
[349892597,1737481851597,-500.0,0.00020273,2]
[349892598,1737481851606,-154.573818,0.00020273,2]
[349892599,1737481851616,-500.0,0.00020273,2]
[349892600,1737481851626,-151.0,0.00020273,2]
[349892601,1737481851635,-671.231652,0.00020273,2]
[349892602,1737481851644,-500.0,0.00020273,2]
[349892603,1737481851654,-671.231652,0.00020273,2]
[349892604,1737481851663,-500.0,0.00020273,2]
[349892605,1737481851672,-151.0,0.00020273,2]
[349892606,1737481851686,-500.0,0.00020273,2]
[349892607,1737481851695,-342.29,0.00020273,2]
[349892608,1737481851857,-500.0,0.00020273,2]
[349892609,1737481851867,-500.0,0.00020273,2]
[349892610,1737481851877,-183.828546,0.00020273,2]
[349892611,1737481851886,-183.828546,0.00020273,2]
[349892612,1737481851895,-500.0,0.00020273,2]
[349892613,1737481851905,-797.051121,0.00020273,2]
[349892614,1737481851916,-221.0049,0.00020273,2]
[349892615,1737481851928,-797.051121,0.00020273,2]
[349892616,1737481851938,-330.81060941,0.00020273,2]
[349892617,1737481851947,-151.0,0.00020273,2]
[349892618,1737481851957,-500.0,0.00020273,2]
[349892619,1737481851966,-500.0,0.00020273,2]
[349892620,1737481851975,-500.0,0.00020273,2]
[349892621,1737481851985,-500.0,0.00020273,2]
[349892622,1737481851994,-500.0,0.00020273,2]
[349892623,1737481852005,-4012.9,0.00020273,2]
[349892624,1737481852015,-500.0,0.00020273,2]
[349892625,1737481852027,-500.0,0.00020273,2]
[349892626,1737481852037,-500.0,0.00020273,2]
[349892627,1737481852046,-523.71,0.00020273,2]
[349892628,1737481852055,-500.0,0.00020273,2]
[349892629,1737481852064,-1002.64,0.00020273,2]
[349892630,1737481852074,-500.0,0.00020273,2]
[349892631,1737481852083,-500.0,0.00020273,2]
[349892632,1737481852093,-968.82,0.00020273,2]
[349892633,1737481852103,-4072.09,0.00020273,2]
[349892634,1737481852113,-151.0,0.00020273,2]
[349892635,1737481852123,-500.0,0.00020273,2]
[349892636,1737481852132,-883.82,0.00020273,2]
[349892637,1737481852142,-648.07,0.00020273,2]
[349892638,1737481852151,-574.82,0.00020273,2]
[349892639,1737481852161,-872.29,0.00020273,2]
[349892640,1737481852170,-547.32,0.00020273,2]
[349892641,1737481852179,-591.16,0.00020273,2]
[349892642,1737481852189,-500.0,0.00020273,2]
[349892643,1737481852198,-1949.9,0.00020273,2]
[349892644,1737481852207,-500.0,0.00020273,2]
[349892645,1737481852216,-2083.72,0.00020273,2]
[349892646,1737481852226,-1234.26,0.00020273,2]
[349892647,1737481852235,-850.27,0.00020273,2]
[349892648,1737481852245,-804.02,0.00020273,2]
[349892649,1737481852255,-638.37,0.00020273,2]
[349892650,1737481852265,-307.346844,0.00020273,2]
[349892651,1737481852274,-966.51,0.00020273,2]
[349892652,1737481852283,-500.0,0.00020273,2]
[349892653,1737481852293,-534.09,0.00020273,2]
[349892654,1737481852302,-1807.38,0.00020273,2]
[349892655,1737481852312,-307.346844,0.00020273,2]
[349892656,1737481852323,-620.7,0.00020273,2]
[349892657,1737481852332,-1229.07,0.00020273,2]
[349892658,1737481852342,-983.11,0.00020273,2]
[349892659,1737481852354,-1007.18,0.00020273,2]
[349892660,1737481852363,-1154.97,0.00020273,2]
[349892661,1737481852373,-151.0,0.00020273,2]
[349892662,1737481852382,-151.0,0.00020273,2]
[349892663,1737481852391,-646.36,0.00020273,2]
[349892664,1737481852401,-500.0,0.00020273,2]
[349892665,1737481852411,-552.58,0.00020273,2]
[349892666,1737481852420,-500.0,0.00020273,2]
[349892667,1737481852430,-1758.1,0.00020273,2]
[349892668,1737481852439,-500.0,0.00020273,2]
[349892669,1737481852451,-2556.122844,0.00020273,2]
[349892670,1737481852460,-869.675254,0.00020273,2]
[349892671,1737481852470,-758.32,0.00020273,2]
[349892672,1737481852480,-500.0,0.00020273,2]
[349892673,1737481852489,-869.675254,0.00020273,2]
[349892674,1737481852498,-2087.54,0.00020273,2]
[349892675,1737481852510,-500.0,0.00020273,2]
[349892676,1737481852519,-552.04,0.00020273,2]
[349892677,1737481852528,-669.6,0.00020273,2]
[349892678,1737481852537,-151.0,0.00020273,2]
[349892679,1737481852547,-500.0,0.00020273,2]
[349892680,1737481852557,-854.14,0.00020273,2]
[349892681,1737481852566,-814.49,0.00020273,2]
[349892682,1737481852575,-692.57,0.00020273,2]
[349892683,1737481852584,-224.06918235,0.00020273,2]
[349892684,1737481852594,-2087.16,0.00020273,2]
[349892685,1737481852605,-863.83,0.00020273,2]
[349892686,1737481852614,-502.54,0.00020273,2]
[349892687,1737481852623,-777.16,0.00020273,2]
[349892688,1737481852632,-500.0,0.00020273,2]
[349892689,1737481852641,-892.77,0.00020273,2]
[349892690,1737481852651,-620.39,0.00020273,2]
[349892691,1737481852660,-1030.47,0.00020273,2]
[349892692,1737481852669,-1320.45,0.00020273,2]